bitfinex-derivatives/quotes_SOLF0:USTF0_20260218
["timestamp","ask_amount","ask_price","bid_price","bid_amount"]
[1771450516228,3.08283435,81.6,81.558,16.50283794]
[1771450516428,16.44718198,81.599,81.546,16.50283794]
[1771450516929,16.44718198,81.599,81.551,16.50283794]
[1771450517822,16.44718198,81.599,81.554,11.0405]
[1771450518424,16.44718198,81.599,81.554,27.54333794]
[1771450518626,16.44718198,81.599,81.555,16.50283794]
[1771450520632,16.44718198,81.579,81.529,16.50283794]
[1771450521331,19.53001633,81.57,81.529,16.50283794]
[1771450521535,19.53001633,81.56,81.517,16.50283794]
[1771450522632,16.44718198,81.558,81.517,16.50283794]
[1771450522832,19.53001633,81.55,81.503,16.50283794]
[1771450523429,19.53001633,81.55,81.515,11.0458]
[1771450523629,19.53001633,81.55,81.503,16.50283794]
[1771450524530,11.0417,81.546,81.503,16.50283794]
[1771450524735,19.53001633,81.55,81.503,16.50283794]
[1771450525838,19.53001633,81.55,81.505,16.50283794]
[1771450528643,19.53001633,81.55,81.507,11.0468]
[1771450529334,3.08283435,81.54,81.507,11.0468]
[1771450530938,3.08283435,81.52,81.481,16.50283794]
[1771450531132,19.53001633,81.52,81.481,16.50283794]
[1771450531338,22.0769,81.57,81.461,16.50283794]
[1771450531339,16.44718198,81.509,81.461,16.50283794]
[1771450532744,3.08283435,81.5,81.47,11.0518]
[1771450533343,3.08283435,81.5,81.463,11.0529]
[1771450534139,3.08283435,81.5,81.463,27.55573794]
[1771450534352,3.08283435,81.5,81.465,11.0525]
[1771450534647,16.44718198,81.499,81.465,11.0525]
[1771450535544,16.44718198,81.499,81.459,16.50283794]
[1771450535736,19.53001633,81.49,81.441,16.50283794]
[1771450535941,3.08283435,81.48,81.441,16.50283794]
[1771450536136,3.08283435,81.48,81.443,11.0555]
[1771450537045,19.53001633,81.47,81.428,16.50283794]
[1771450537348,19.53001633,81.48,81.431,16.50283794]
[1771450537845,16.44718198,81.479,81.431,16.50283794]
[1771450538545,3.08283435,81.47,81.431,16.50283794]
[1771450538746,118.94,81.502,81.387,16.50283794]
[1771450538951,19.53001633,81.44,81.398,16.50283794]
[1771450539447,3.08283435,81.44,81.398,16.50283794]
[1771450539644,3.08283435,81.43,81.381,16.50283794]
[1771450539952,3.08283435,81.42,81.381,16.50283794]
[1771450540152,16.44718198,81.43,81.38,3.08283435]
[1771450540153,19.53001633,81.43,81.38,3.08283435]
[1771450540347,19.53001633,81.43,81.37,3.08283435]
[1771450540550,16.44718198,81.419,81.37,19.58567229]
[1771450540854,16.44718198,81.419,81.38,3.08283435]
[1771450541548,16.44718198,81.46,81.41,19.58567229]
[1771450541749,16.44718198,81.46,81.43,3.08283435]
[1771450541946,16.44718198,81.46,81.42,8.26906164]
[1771450542449,11.0512,81.476,81.421,16.50283794]
[1771450542450,16.44718198,81.475,81.421,16.50283794]
[1771450542847,16.44718198,81.471,81.421,16.50283794]
[1771450543453,16.44718198,81.471,81.411,11.0599]
[1771450543658,11.0522,81.469,81.411,11.0599]
[1771450543951,16.44718198,81.468,81.411,11.0599]
[1771450546154,16.44718198,81.468,81.411,25.12636759]
[1771450547051,16.44718198,81.468,81.414,11.0594]
[1771450547651,16.44718198,81.468,81.403,77.32]
[1771450547652,16.44718198,81.468,81.415,14.06646759]
[1771450547858,14.42438467,81.5,81.421,14.06646759]
[1771450548758,14.42438467,81.488,81.426,25.12436759]
[1771450549761,14.42438467,81.484,81.426,25.12436759]
[1771450550056,14.42438467,81.484,81.412,14.06646759]
[1771450550361,14.42438467,81.484,81.391,14.06646759]
[1771450550562,14.42438467,81.484,81.393,14.06646759]
[1771450551555,8.26906164,81.49,81.393,14.06646759]
[1771450551556,11.0544,81.452,81.396,11.062]
[1771450551762,11.0544,81.452,81.397,14.06646759]
[1771450552260,14.42438467,81.454,81.397,14.06646759]
[1771450553663,14.42438467,81.454,81.403,14.06646759]
[1771450554456,14.42438467,81.454,81.406,14.06646759]
[1771450555758,14.42438467,81.454,81.41,11.0601]
[1771450555967,8.27288335,81.49,81.393,14.06646759]
[1771450555968,14.42438467,81.453,81.393,14.06646759]
[1771450556260,14.42438467,81.453,81.394,11.0621]
[1771450557772,14.42438467,81.45,81.394,11.0621]
[1771450558082,14.42438467,81.45,81.403,14.69356668]
[1771450558270,14.31237742,81.469,81.403,14.69356668]
[1771450558971,14.31237742,81.465,81.414,14.69356668]
[1771450559774,11.0533,81.461,81.414,14.69356668]
[1771450561374,14.31237742,81.465,81.418,11.0589]
[1771450561575,14.31237742,81.465,81.419,14.69356668]
[1771450561875,11.0507,81.48,81.429,14.69356668]
[1771450562471,14.31237742,81.483,81.439,14.69356668]
[1771450562869,14.31237742,81.483,81.441,14.69356668]
[1771450563775,14.31237742,81.483,81.443,14.69356668]
[1771450568275,14.31237742,81.483,81.44,8.27288335]
[1771450568476,14.31237742,81.483,81.427,14.69356668]
[1771450569780,11.0515,81.474,81.428,11.0576]
[1771450569975,11.0515,81.474,81.429,14.69356668]
[1771450571283,36.87,81.51,81.429,14.69356668]
[1771450571582,14.31237742,81.511,81.431,14.69356668]
[1771450571875,14.31237742,81.488,81.437,25.74986668]
[1771450572075,14.31237742,81.488,81.438,14.69356668]
[1771450573773,11.0497,81.487,81.441,14.69356668]
[1771450574681,25.36207742,81.487,81.441,14.69356668]
[1771450575079,14.17413421,81.486,81.441,14.69356668]
[1771450576175,14.17413421,81.486,81.43,8.27288335]
[1771450576176,14.17413421,81.486,81.443,13.65650822]
[1771450578574,11.0486,81.495,81.443,13.65650822]
[1771450578779,14.17413421,81.494,81.443,13.65650822]
[1771450579289,14.17413421,81.483,81.443,13.65650822]
[1771450581692,11.0492,81.491,81.443,13.65650822]
[1771450581981,14.17413421,81.5,81.443,13.65650822]
[1771450582382,25.22213421,81.5,81.457,11.0536]
[1771450582584,25.22213421,81.5,81.457,24.71010822]
[1771450582781,14.17413421,81.5,81.458,13.65650822]
[1771450582984,14.17413421,81.514,81.458,13.65650822]
[1771450583690,11.0469,81.508,81.464,13.65650822]
[1771450584684,11.0469,81.508,81.466,11.0524]
[1771450584988,11.0469,81.508,81.467,13.65650822]
[1771450585389,11.0469,81.508,81.468,11.0521]
[1771450585891,11.0469,81.508,81.47,3.08390816]
[1771450588289,8.0,81.529,81.46,3.08390816]
[1771450588290,14.17413421,81.503,81.46,3.08390816]
[1771450588988,14.17413421,81.503,81.47,3.08390816]
[1771450589794,14.17413421,81.501,81.47,3.08390816]
[1771450591995,14.17413421,81.499,81.46,3.08390816]
[1771450593294,14.17413421,81.499,81.47,3.08390816]
[1771450594900,14.17413421,81.499,81.462,11.053]
[1771450601704,14.17413421,81.499,81.464,11.0527]
[1771450604004,14.17413421,81.499,81.432,44.89621242]
[1771450604005,14.17413421,81.499,81.45,3.08390816]
[1771450604600,14.17413421,81.497,81.452,13.65650822]
[1771450605802,14.17413421,81.497,81.455,11.0539]
[1771450606002,14.17413421,81.497,81.456,12.98621673]
[1771450606198,14.17413421,81.497,81.46,3.08390816]
[1771450610402,11.0488,81.494,81.46,3.08390816]
[1771450610706,23.70218924,81.494,81.46,3.08390816]
[1771450614007,11.049,81.492,81.46,3.08390816]
[1771450614207,12.65338924,81.491,81.46,3.08390816]
[1771450614603,12.65338924,81.491,81.429,22.78201242]
[1771450614604,12.65338924,81.486,81.444,12.98621673]
[1771450615812,8.96875459,81.499,81.388,12.29]
[1771450615813,8.96875459,81.508,81.48,16.07012489]
[1771450616014,12.65338924,81.51,81.48,16.06949531]
[1771450616315,12.65338924,81.51,81.48,12.98621673]
[1771450618018,23.27663079,81.52,81.48,16.06949531]
[1771450618715,12.23143079,81.519,81.48,16.06949531]
[1771450619912,3.08327858,81.53,81.482,12.06795754]
[1771450619913,23.27543079,81.529,81.482,12.06795754]
[1771450620113,12.23143079,81.529,81.491,12.06795754]
[1771450620418,12.23143079,81.543,81.5,3.08327858]
[1771450620617,12.23143079,81.543,81.501,12.06795754]
[1771450624222,12.23143079,81.543,81.503,12.06795754]
[1771450628022,12.23143079,81.543,81.51,15.15123612]
[1771450628215,12.23143079,81.543,81.51,12.06795754]
[1771450633022,117.44,81.562,81.51,15.15123612]
[1771450633023,12.23143079,81.553,81.51,15.15123612]
[1771450633219,12.23143079,81.553,81.511,12.06795754]
[1771450634124,258.45960535,81.549,81.511,12.06795754]
[1771450634318,12.23143079,81.548,81.511,12.06795754]
[1771450636021,247.41830535,81.549,81.511,12.06795754]
[1771450637318,247.41830535,81.549,81.514,12.31320889]
[1771450637926,247.41830535,81.549,81.515,11.0458]
[1771450638129,247.41830535,81.549,81.516,12.31320889]
[1771450638328,11.0414,81.548,81.516,12.31320889]
[1771450639328,12.15465391,81.544,81.501,12.31320889]
[1771450640728,12.15465391,81.54,81.501,23.36090889]
[1771450641826,12.15465391,81.536,81.493,11.0488]
[1771450642129,12.15465391,81.536,81.493,23.36200889]
[1771450642331,12.15465391,81.536,81.494,12.31320889]
[1771450642531,11.0434,81.533,81.496,11.0484]
[1771450643136,12.15465391,81.536,81.496,11.0484]
[1771450647440,12.15465391,81.529,81.496,11.0484]
[1771450653031,23.19865391,81.529,81.488,12.31320889]
[1771450653233,12.15465391,81.528,81.488,12.31320889]
[1771450653742,12.15465391,81.528,81.49,11.0492]
[1771450653942,12.15465391,81.528,81.491,12.31320889]
[1771450654843,12.15465391,81.528,81.492,11.0489]
[1771450655745,12.15465391,81.528,81.492,23.36210889]
[1771450656337,12.15465391,81.528,81.493,12.31320889]
[1771450657545,12.15465391,81.519,81.483,12.31320889]
[1771450658948,12.15465391,81.509,81.473,12.31320889]
[1771450659847,11.047,81.507,81.473,12.31320889]
[1771450660345,12.15465391,81.519,81.473,12.31320889]
[1771450660544,12.15465391,81.529,81.473,12.31320889]
[1771450661639,11.0447,81.524,81.485,11.0499]
[1771450661851,11.0447,81.524,81.486,12.31320889]
[1771450662147,3.08327858,81.52,81.486,12.31320889]
[1771450663748,11.0454,81.518,81.486,12.31320889]
[1771450664649,12.15465391,81.517,81.486,12.31320889]
[1771450666449,3.08327858,81.52,81.486,12.31320889]
[1771450668655,11.0454,81.519,81.486,12.31320889]
[1771450670056,11.0446,81.525,81.486,12.31320889]
[1771450670260,3.08327858,81.52,81.486,12.31320889]
[1771450670460,15.42451532,81.52,81.486,12.31320889]
[1771450674065,12.34123674,81.51,81.477,11.60217871]
[1771450674264,3.08327858,81.52,81.477,11.60217871]
[1771450674661,12.34123674,81.522,81.477,11.60217871]
[1771450675665,11.045,81.521,81.479,11.0507]
[1771450675866,11.045,81.521,81.48,11.60217871]
[1771450677372,11.045,81.521,81.483,11.60217871]
[1771450678761,11.045,81.521,81.484,11.0499]
[1771450678960,11.045,81.521,81.485,11.89459917]
[1771450679371,11.0442,81.527,81.485,11.89459917]
[1771450681768,11.0442,81.527,81.487,11.0496]
[1771450682073,11.0442,81.527,81.488,11.89459917]
[1771450682776,12.14407188,81.539,81.496,11.89459917]
[1771450682975,8.83746802,81.55,81.501,11.89459917]
[1771450683170,12.14407188,81.551,81.501,11.89459917]
[1771450683475,8.83892561,81.55,81.501,11.89459917]
[1771450683673,12.14407188,81.551,81.515,11.89459917]
[1771450683872,271.79356732,81.562,81.521,11.89459917]
[1771450684071,12.14407188,81.561,81.521,11.89459917]
[1771450685666,12.14407188,81.561,81.524,11.89459917]
[1771450686375,11.0398,81.56,81.524,11.89459917]
[1771450687475,11.0405,81.554,81.524,11.89459917]
[1771450688476,11.0398,81.56,81.524,11.89459917]
[1771450689379,23.18387188,81.56,81.524,11.89459917]
[1771450689577,12.14407188,81.559,81.524,11.89459917]
[1771450690071,12.14407188,81.559,81.51,3.0835343]
[1771450690272,3.0835343,81.53,81.495,11.89459917]
[1771450690481,3.0835343,81.53,81.464,22.78201242]
[1771450690482,12.14407188,81.529,81.481,11.89459917]
[1771450691673,11.0447,81.524,81.485,11.89459917]
[1771450691980,3.0835343,81.52,81.485,11.89459917]
[1771450692378,12.14407188,81.523,81.485,11.89459917]
[1771450692677,11.0449,81.522,81.486,11.0497]
[1771450693779,12.14407188,81.521,81.486,11.0497]
[1771450695073,12.14407188,81.521,81.485,11.89459917]
[1771450695074,12.14407188,81.521,81.489,11.24855845]
[1771450695274,3.0835343,81.53,81.489,11.24855845]
[1771450695780,12.41593322,81.532,81.491,11.24855845]
[1771450695982,12.41593322,81.543,81.491,11.24855845]
[1771450696280,15.49946752,81.54,81.491,11.24855845]
[1771450696781,11.043,81.536,81.496,11.24855845]
[1771450697679,11.043,81.536,81.498,11.24855845]
[1771450699088,15.49946752,81.54,81.499,11.048]
[1771450700187,15.49946752,81.54,81.5,11.24855845]
[1771450701382,11.0427,81.538,81.5,11.24855845]
[1771450702782,12.41593322,81.53,81.483,11.24855845]
[1771450702985,12.41593322,81.519,81.483,11.24855845]
[1771450704789,12.41593322,81.519,81.485,11.24855845]
[1771450706291,12.41593322,81.529,81.488,11.24855845]
[1771450707692,12.41593322,81.529,81.492,11.0489]
[1771450709196,12.41593322,81.529,81.488,11.24855845]
[1771450710699,12.41593322,81.523,81.481,11.0504]
[1771450711096,12.41593322,81.519,81.481,22.29895845]
[1771450711296,12.41593322,81.519,81.482,11.24855845]
[1771450717107,12.41593322,81.512,81.482,11.24855845]
[1771450717305,12.41593322,81.512,81.472,11.24855845]
[1771450717806,11.0464,81.511,81.472,11.24855845]
[1771450719412,15.49946752,81.51,81.472,11.24855845]
[1771450719715,15.49946752,81.51,81.465,11.0526]
[1771450720099,12.41593322,81.508,81.47,11.0518]
[1771450720301,12.41593322,81.508,81.47,22.30035845]
[1771450720501,12.41593322,81.508,81.471,11.24855845]
[1771450720710,12.41593322,81.53,81.485,11.24855845]
[1771450721012,12.41593322,81.53,81.49,14.33209275]
[1771450721212,12.41593322,81.53,81.49,11.24855845]
[1771450721713,11.0446,81.525,81.49,11.24855845]
[1771450722608,23.46053322,81.525,81.49,11.24855845]
[1771450722813,11.0453,81.52,81.49,11.24855845]
[1771450723313,12.41593322,81.524,81.49,11.24855845]
[1771450724807,3.0835343,81.54,81.491,11.24855845]
[1771450725109,12.41593322,81.539,81.491,11.24855845]
[1771450725710,12.41593322,81.539,81.491,22.29765845]
[1771450725909,12.41593322,81.539,81.492,10.85201483]
[1771450726713,11.19284951,81.537,81.492,10.85201483]
[1771450727314,11.19284951,81.534,81.492,10.85201483]
[1771450736019,11.19284951,81.532,81.492,10.85201483]
[1771450737517,11.0437,81.531,81.492,10.85201483]
[1771450737822,11.19284951,81.53,81.492,10.85201483]
[1771450740322,11.19284951,81.53,81.493,11.0488]
[1771450740528,11.19284951,81.53,81.494,11.41275515]
[1771450740923,11.19284951,81.53,81.495,11.0485]
[1771450741125,11.19284951,81.53,81.496,11.41275515]
[1771450742329,11.21594306,81.527,81.496,11.41275515]
[1771450743331,11.21594306,81.527,81.497,11.0482]
[1771450744133,11.21594306,81.527,81.496,11.41275515]
[1771450749436,11.21594306,81.527,81.496,22.46115515]
[1771450751638,11.21594306,81.527,81.497,11.41275515]
[1771450752238,11.21594306,81.527,81.498,11.0481]
[1771450754543,22.25884306,81.537,81.499,11.41275515]
[1771450754945,10.92293415,81.536,81.499,11.41275515]
[1771450756538,10.92293415,81.534,81.499,11.41275515]
[1771450759049,11.0434,81.533,81.499,11.41275515]
[1771450759249,21.96633415,81.533,81.499,11.41275515]
[1771450759441,10.92293415,81.532,81.499,11.41275515]
[1771450760042,8.0,81.561,81.482,22.78201242]
[1771450760043,10.92293415,81.57,81.521,11.0901866]
[1771450760444,10.92293415,81.57,81.531,11.0901866]
[1771450761647,10.92293415,81.57,81.532,11.0434]
[1771450762154,10.92293415,81.57,81.533,11.0901866]
[1771450762545,10.92293415,81.549,81.499,15.16828369]
[1771450762850,10.92293415,81.549,81.499,11.0901866]
[1771450763648,10.92293415,81.547,81.506,11.0901866]
[1771450765045,10.92293415,81.547,81.508,11.0901866]
[1771450767051,10.92293415,81.547,81.511,11.0901866]
[1771450767252,10.92293415,81.558,81.511,11.0901866]
[1771450767753,10.92293415,81.569,81.521,11.0901866]
[1771450768752,10.92293415,81.568,81.526,11.0443]
[1771450768956,10.92293415,81.568,81.526,22.1344866]
[1771450769949,10.92293415,81.565,81.526,22.1344866]
[1771450774460,10.92293415,81.565,81.527,11.0901866]
[1771450775461,11.0381,81.573,81.531,11.0901866]
[1771450775654,10.92293415,81.576,81.531,11.0901866]
[1771450776051,10.92293415,81.555,81.517,11.0901866]
[1771450777752,21.96373415,81.553,81.517,11.0901866]
[1771450779866,11.0414,81.548,81.517,11.0901866]
[1771450783268,10.92293415,81.553,81.517,11.0901866]
[1771450785369,10.92293415,81.553,81.518,11.0454]
[1771450787076,10.92293415,81.553,81.518,21.45743887]
[1771450787475,10.92293415,81.553,81.52,11.045]
[1771450791178,10.92293415,81.553,81.523,11.0447]
[1771450791380,20.82179781,81.556,81.524,10.41203887]
[1771450791674,9.78149781,81.555,81.524,10.41203887]
[1771450797482,9.78149781,81.553,81.52,11.045]
[1771450799180,9.78149781,81.553,81.52,20.42320094]
[1771450800387,9.41667024,81.563,81.524,9.37820094]
[1771450802693,9.41667024,81.556,81.524,9.37820094]
[1771450803395,9.41667024,81.545,81.514,15.16828369]
[1771450803696,9.41667024,81.545,81.51,9.37820094]
[1771450804794,11.042,81.544,81.51,9.37820094]
[1771450805595,11.0411,81.55,81.51,9.37820094]
[1771450807297,11.0411,81.55,81.511,9.37820094]
[1771450807896,11.0419,81.545,81.511,9.37820094]
[1771450808292,9.41667024,81.555,81.515,9.37820094]
[1771450809300,20.45707024,81.555,81.517,9.37820094]
[1771450809503,118.14,81.569,81.521,9.37820094]
[1771450809504,9.41667024,81.564,81.521,9.37820094]
[1771450810801,11.0401,81.558,81.521,9.37820094]
[1771450812302,9.41667024,81.574,81.531,9.37820094]
[1771450812700,258.73732869,81.584,81.541,9.37820094]
[1771450812894,9.41667024,81.579,81.532,26.21168369]
[1771450813098,9.41667024,81.579,81.53,3.081011]
[1771450813099,9.41667024,81.579,81.533,9.37820094]
[1771450813301,9.41667024,81.578,81.534,20.42140094]
[1771450814007,9.41667024,81.578,81.535,9.37820094]
[1771450814907,9.61197076,81.569,81.535,9.37820094]
[1771450815108,9.61197076,81.569,81.525,11.0445]
[1771450815308,9.61197076,81.569,81.525,9.3546068]
[1771450815503,9.61197076,81.549,81.516,11.0456]
[1771450817711,9.61197076,81.549,81.516,20.4002068]
[1771450818412,9.61197076,81.549,81.522,11.0448]
[1771450818614,9.61197076,81.559,81.523,9.3546068]
[1771450821318,20.65207076,81.558,81.523,9.3546068]
[1771450821817,9.61197076,81.557,81.523,9.3546068]
[1771450822311,11.0422,81.542,81.504,9.3546068]
[1771450824213,11.0422,81.542,81.479,77.26]
[1771450824214,12.69298176,81.57,81.511,9.3546068]
[1771450824414,12.69298176,81.57,81.478,22.1016]
[1771450824415,9.61197076,81.569,81.521,9.3546068]
[1771450825122,11.0401,81.558,81.521,9.3546068]
[1771450832024,8.0,81.583,81.5,78.34]
[1771450832025,9.61197076,81.549,81.511,9.3546068]
[1771450832319,9.61197076,81.549,81.499,9.3546068]
[1771450832524,9.61197076,81.548,81.509,11.0465]
[1771450833823,9.61197076,81.548,81.509,20.4011068]
[1771450835221,118.52,81.564,81.481,77.26]
[1771450835222,9.61197076,81.539,81.503,11.0475]
[1771450835726,9.61197076,81.539,81.503,20.4021068]
[1771450835915,9.61197076,81.539,81.508,11.0468]
[1771450841434,9.61197076,81.539,81.508,20.4014068]
[1771450843034,9.61197076,81.539,81.509,9.3546068]
[1771450860437,9.61197076,81.539,81.51,11.0465]
[1771450861043,9.61197076,81.539,81.509,9.3546068]
[1771450864041,9.61197076,81.539,81.495,9.22303535]
[1771450864042,3.08202308,81.53,81.495,9.22303535]
[1771450864348,12.4301849,81.52,81.472,9.22303535]
[1771450865542,9.34816182,81.52,81.472,9.22303535]
[1771450865743,9.34816182,81.52,81.484,9.22303535]
[1771450866341,9.34816182,81.52,81.488,9.22303535]
[1771450867643,9.34816182,81.52,81.49,11.0491]
[1771450867843,9.34816182,81.52,81.49,20.27213535]
[1771450872345,3.08202308,81.53,81.492,11.0489]
[1771450872537,3.08202308,81.53,81.493,9.22303535]
[1771450873349,20.39196182,81.531,81.493,9.22303535]
[1771450873749,11.0439,81.529,81.493,9.22303535]
[1771450873949,20.39206182,81.529,81.493,9.22303535]
[1771450876649,9.0435637,81.528,81.493,9.22303535]
[1771450877849,20.0877637,81.527,81.493,9.22303535]
[1771450878045,9.0435637,81.526,81.493,9.22303535]
[1771450879649,11.0445,81.525,81.493,9.22303535]
[1771450879845,20.0880637,81.525,81.493,9.22303535]
[1771450880551,9.0435637,81.525,81.495,11.0485]
[1771450883252,9.0435637,81.525,81.495,20.04844369]
[1771450887260,9.0435637,81.525,81.495,8.99994369]
[1771450888863,11.0446,81.524,81.495,8.99994369]
[1771450890263,8.94613558,81.523,81.495,8.99994369]
[1771450912289,8.69636946,81.513,81.455,22.78201242]
[1771450912486,8.69636946,81.522,81.471,8.452468]
[1771450912690,8.69636946,81.522,81.491,8.452468]
[1771450912886,8.68659944,81.531,81.491,8.452468]
[1771450913286,8.68659944,81.531,81.501,8.452468]
[1771450914590,8.99398519,81.54,81.503,8.452468]
[1771450914786,8.99398519,81.539,81.503,8.452468]
[1771450914995,8.58994126,81.541,81.503,8.452468]
[1771450915195,8.03833343,81.539,81.503,8.452468]
[1771450916700,8.01630739,81.538,81.503,8.452468]
[1771450925098,18.88442828,81.534,81.503,8.452468]
[1771450928004,7.8336847,81.519,81.473,8.86087143]
[1771450928206,7.8336847,81.517,81.473,8.86087143]
[1771450928501,7.8336847,81.527,81.49,3.08205129]
[1771450928707,7.8336847,81.527,81.491,8.86087143]
[1771450929904,7.68047746,81.547,81.501,8.86087143]
[1771450931505,7.74046741,81.529,81.491,8.86087143]
[1771450932605,7.74046741,81.529,81.492,11.0488]
[1771450932810,7.74046741,81.529,81.493,8.86087143]
[1771450935608,11.0429,81.537,81.499,8.18128879]
[1771450935908,7.77738404,81.538,81.501,8.18128879]
[1771450937813,7.77738404,81.538,81.508,19.22798879]
[1771450943417,7.77738404,81.538,81.51,11.0464]
[1771450943819,7.77738404,81.538,81.509,8.18128879]
[1771450950122,11.042,81.544,81.509,8.18128879]
[1771450950422,7.50440081,81.543,81.509,8.18128879]
[1771450951018,7.49717111,81.541,81.504,11.0472]
[1771450951321,7.46104972,81.539,81.5,8.18128879]
[1771450952525,114.44,81.558,81.5,8.18128879]
[1771450952526,7.45407409,81.529,81.5,8.18128879]
[1771450953920,3.08205129,81.52,81.481,8.18128879]
[1771450954124,7.46649981,81.519,81.481,8.18128879]
[1771450957725,7.60384459,81.516,81.481,8.18128879]
[1771450961230,7.60384459,81.516,81.483,8.18128879]
[1771450962734,7.60384459,81.516,81.484,11.0499]
[1771450963232,7.60384459,81.516,81.489,11.0493]
[1771450965737,7.60384459,81.516,81.458,77.28]
[1771450965738,7.6771215,81.499,81.46,8.03915862]
[1771450966732,7.6771215,81.499,81.469,11.052]
[1771450969438,7.6771215,81.499,81.47,8.03915862]
[1771450970339,7.69532336,81.508,81.47,8.03915862]
[1771450973948,11.0471,81.506,81.47,8.03915862]
[1771450976549,7.67844937,81.499,81.457,11.0536]
[1771450976953,7.67844937,81.499,81.458,8.03915862]
[1771450978561,18.71703106,81.498,81.458,8.03915862]
[1771450979659,8.09304345,81.497,81.458,8.03915862]
[1771450981256,11.0488,81.494,81.458,8.03915862]
[1771450982360,11.0499,81.485,81.458,8.03915862]
[1771450982559,8.0779249,81.489,81.449,8.06132916]
[1771450983261,8.07064143,81.488,81.449,8.06132916]
[1771450985362,19.09976711,81.485,81.449,8.06132916]
[1771450985563,3.08537846,81.48,81.449,8.06132916]
[1771450987066,19.09976711,81.485,81.449,8.06132916]
[1771450988464,8.04986711,81.485,81.45,11.0545]
[1771450988664,8.04986711,81.485,81.451,8.06132916]
[1771450989758,7.97823698,81.484,81.451,8.06132916]
[1771450991261,7.97823698,81.484,81.453,8.06132916]
[1771450992868,7.97823698,81.484,81.455,8.06132916]
[1771450993066,7.97564849,81.491,81.455,8.06132916]
[1771450993369,7.97564849,81.503,81.455,8.06132916]
[1771450993566,7.97564849,81.492,81.451,8.06132916]
[1771450993866,11.49850477,81.54,81.451,8.06132916]
[1771450993867,7.97139556,81.489,81.451,8.06132916]
[1771450994662,7.94326952,81.487,81.452,11.0543]
[1771450995070,7.94326952,81.487,81.452,19.14903018]
[1771450999173,7.71457334,81.508,81.456,8.09473018]
[1771450999366,7.71457334,81.508,81.461,8.09473018]
[1771450999761,7.71457334,81.508,81.472,8.09473018]
[1771451002170,7.68402844,81.501,81.459,8.09473018]
[1771451002473,7.68402844,81.499,81.459,8.09473018]
[1771451004070,7.68402844,81.499,81.462,8.09473018]
[1771451005272,11.0483,81.497,81.462,8.09473018]
[1771451006869,7.53412685,81.496,81.462,8.09473018]
[1771451007076,7.54764021,81.485,81.441,8.09473018]
[1771451007773,7.54764021,81.485,81.428,8.09473018]
[1771451007974,7.54764021,81.485,81.43,3.08537846]
[1771451008169,7.54764021,81.485,81.431,8.09473018]
[1771451008775,3.08537846,81.48,81.437,8.09473018]
[1771451008974,10.58531382,81.48,81.437,8.09473018]
[1771451009675,10.58531382,81.48,81.442,8.09473018]
[1771451010268,10.58531382,81.48,81.444,19.15013018]
[1771451012874,10.58531382,81.48,81.446,11.0551]
[1771451012875,7.49993536,81.48,81.446,11.0551]
[1771451013079,11.0497,81.487,81.447,8.09473018]
[1771451013377,18.35992424,81.487,81.447,8.09473018]
[1771451013579,7.31022424,81.486,81.447,8.09473018]
[1771451015580,11.05,81.484,81.447,8.09473018]
[1771451016581,18.30164524,81.484,81.447,8.09473018]
[1771451016983,18.28063751,81.479,81.447,8.09473018]
[1771451018881,11.0499,81.485,81.447,8.09473018]
[1771451019989,11.0499,81.485,81.423,182.98156915]
[1771451019990,8.99429816,81.507,81.461,8.09473018]
[1771451020290,7.1424261,81.509,81.461,8.09473018]
[1771451021079,11.49850477,81.541,81.444,77.3]
[1771451021080,7.19162959,81.489,81.45,8.09473018]
[1771451022692,18.20074768,81.488,81.45,8.09473018]
[1771451025288,18.20074768,81.488,81.451,11.0545]
[1771451025487,18.20074768,81.488,81.451,18.76087897]
[1771451025692,18.20074768,81.488,81.452,7.70637897]
[1771451025886,7.15114768,81.488,81.455,7.70637897]
[1771451029896,6.94568334,81.499,81.455,7.70637897]
[1771451031697,6.94568334,81.499,81.458,7.70637897]
[1771451034498,6.94133789,81.497,81.458,7.70637897]
[1771451036306,11.0485,81.496,81.458,7.70637897]
[1771451036810,17.93768795,81.496,81.458,7.70637897]
[1771451037103,6.88918795,81.495,81.458,7.70637897]
[1771451037310,11.0489,81.493,81.458,7.70637897]
[1771451041709,17.82681578,81.493,81.458,7.70637897]
[1771451043006,11.0491,81.491,81.458,7.70637897]
[1771451043911,6.73798716,81.49,81.458,7.70637897]
[1771451044112,11.0496,81.488,81.458,7.70637897]
[1771451046309,6.69949744,81.487,81.45,3.08559028]
[1771451046508,6.69949744,81.481,81.446,7.47987255]
[1771451047110,11.0506,81.48,81.446,7.47987255]
[1771451051715,6.69949744,81.481,81.446,7.47987255]
[1771451051911,3.08559028,81.49,81.45,7.47987255]
[1771451052113,6.50695784,81.492,81.45,7.47987255]
[1771451052314,6.50695784,81.492,81.451,7.47987255]
[1771451053813,6.50695784,81.492,81.454,7.47987255]
[1771451055413,6.55591147,81.489,81.456,11.0538]